bitfinex-derivatives/quotes_BNBF0:USTF0_20250309
["timestamp","ask_amount","ask_price","bid_price","bid_amount"]
[1741479041134,0.9010447,593.05,592.02,2.747]
[1741479041330,0.9010447,593.04,592.02,2.747]
[1741479041536,0.9010447,593.03,592.02,2.747]
[1741479041735,0.9010447,593.02,592.02,2.747]
[1741479041936,0.9010447,593.01,592.02,2.747]
[1741479042139,0.9010447,593.0,592.02,2.747]
[1741479042337,0.9010447,592.99,592.02,2.747]
[1741479042537,0.9010447,592.98,592.02,2.747]
[1741479042739,0.9010447,592.97,592.02,4.595]
[1741479042938,0.9010447,592.96,592.02,4.595]
[1741479043133,0.29369939,593.05,592.02,4.595]
[1741479043134,0.9010447,592.95,592.02,4.595]
[1741479043335,0.9010447,592.94,592.02,4.595]
[1741479043536,0.9010447,592.93,592.02,4.595]
[1741479043736,0.337234,593.06,592.02,4.595]
[1741479043737,0.9010447,592.92,592.02,4.595]
[1741479043933,0.9010447,592.91,592.02,4.595]
[1741479044140,0.9010447,592.9,592.02,4.595]
[1741479044442,0.9010447,592.89,592.02,4.595]
[1741479044739,0.9010447,592.88,592.02,4.595]
[1741479044934,0.9010447,592.87,592.02,4.595]
[1741479045138,0.9010447,592.86,592.02,4.595]
[1741479045441,0.9010447,592.85,592.02,4.595]
[1741479045740,0.9010447,592.84,592.02,4.595]
[1741479046039,0.9010447,592.83,592.02,5.69]
[1741479046240,0.9010447,592.82,592.02,5.69]
[1741479046434,0.9010447,592.81,592.02,5.69]
[1741479046634,0.9010447,592.8,592.02,5.69]
[1741479046835,0.9010447,592.79,592.02,5.69]
[1741479047040,0.9010447,592.78,592.02,5.69]
[1741479047237,0.9010447,592.77,592.02,5.69]
[1741479047442,0.9010447,592.76,592.02,5.69]
[1741479047746,0.9010447,592.75,592.02,5.69]
[1741479047943,0.9010447,592.74,592.02,5.69]
[1741479048142,0.9010447,592.73,592.02,5.69]
[1741479048338,0.9010447,592.72,592.02,5.69]
[1741479048544,0.90126884,592.71,592.02,5.69]
[1741479048738,0.90126884,592.7,592.02,5.69]
[1741479048941,0.90126884,592.69,592.02,5.69]
[1741479049140,0.90126884,592.68,592.02,5.69]
[1741479049342,0.90126884,592.67,592.02,5.69]
[1741479049543,0.90126884,592.66,592.02,5.69]
[1741479049743,0.90126884,592.65,592.02,5.69]
[1741479049941,0.90126884,592.64,592.02,5.69]
[1741479050142,0.90126884,592.63,592.02,5.69]
[1741479050342,0.90126884,592.62,592.02,5.69]
[1741479050542,0.90126884,592.61,592.02,5.69]
[1741479050739,0.90126884,592.6,592.02,5.69]
[1741479050939,0.90126884,592.59,592.02,5.69]
[1741479051144,0.90126884,592.58,592.02,5.69]
[1741479051338,0.90126884,592.57,592.02,5.69]
[1741479051547,0.90126884,592.56,592.02,5.69]
[1741479051747,0.90126884,592.55,592.02,5.69]
[1741479051949,0.90126884,592.54,592.02,5.69]
[1741479052143,0.90126884,592.53,592.02,5.69]
[1741479052346,0.90126884,592.52,592.02,5.69]
[1741479052542,0.90126884,592.51,592.02,5.69]
[1741479052747,0.90126884,592.5,592.02,5.69]
[1741479052942,0.29376509,592.63,592.02,5.69]
[1741479052943,0.90126884,592.49,592.02,4.831]
[1741479053143,0.90126884,592.48,592.02,4.831]
[1741479053342,0.29376509,592.63,592.02,4.831]
[1741479053543,0.90131432,592.62,592.02,4.831]
[1741479053748,0.90131432,592.61,592.02,5.731]
[1741479053948,0.90131432,592.6,592.02,5.731]
[1741479054146,0.90131432,592.59,592.02,5.731]
[1741479054347,0.90131432,592.58,592.02,5.731]
[1741479054646,0.90128779,592.57,592.02,5.731]
[1741479054949,0.90128779,592.56,592.02,5.731]
[1741479055148,0.90128779,592.55,592.02,5.731]
[1741479055349,0.90128779,592.54,592.02,5.731]
[1741479055648,0.90128779,592.53,592.02,5.731]
[1741479055849,0.90128779,592.52,592.02,5.731]
[1741479056052,0.90128779,592.51,592.02,6.65]
[1741479056252,0.90128779,592.5,592.02,6.65]
[1741479056549,0.29376509,592.63,592.02,6.65]
[1741479056550,0.90128779,592.49,592.02,6.65]
[1741479056747,0.90128779,592.48,592.02,5.865]
[1741479056945,0.90128779,592.47,592.02,5.865]
[1741479057146,0.29376509,592.63,592.02,5.865]
[1741479057147,0.90128779,592.46,592.02,5.865]
[1741479057350,0.90128779,592.45,592.02,5.865]
[1741479057546,0.90128779,592.44,592.02,5.865]
[1741479057750,0.90128779,592.43,592.02,5.865]
[1741479057947,0.90128779,592.42,592.02,5.865]
[1741479058148,0.90128779,592.41,592.02,5.865]
[1741479058348,0.90128779,592.4,592.02,5.865]
[1741479058545,0.90128779,592.39,592.02,5.865]
[1741479058851,0.90128779,592.38,592.02,5.865]
[1741479059053,0.90128779,592.37,592.02,5.865]
[1741479059246,0.90128779,592.36,592.02,5.865]
[1741479059448,0.90128779,592.35,592.02,5.865]
[1741479059647,0.89962198,592.34,592.02,5.865]
[1741479059849,0.29382462,592.45,592.02,5.038]
[1741479060050,0.89962763,592.44,592.02,5.038]
[1741479060250,0.89962763,592.43,592.02,5.038]
[1741479060450,0.89962763,592.42,592.02,5.038]
[1741479060651,0.89962763,592.41,592.02,5.038]
[1741479060952,0.89962763,592.4,592.02,5.038]
[1741479061151,0.89962763,592.39,592.02,5.038]
[1741479061348,0.89962763,592.38,592.02,5.038]
[1741479061549,0.89962763,592.37,592.02,5.038]
[1741479061751,0.89962763,592.36,592.02,5.038]
[1741479062052,0.89962763,592.35,592.02,5.038]
[1741479062253,0.29382462,592.45,592.02,5.038]
[1741479062454,0.89903724,592.44,592.02,5.038]
[1741479062654,0.89903724,592.43,592.02,5.038]
[1741479062860,0.89903724,592.42,592.02,5.038]
[1741479063055,0.89903724,592.41,592.02,5.038]
[1741479063254,0.89903724,592.4,592.02,5.038]
[1741479063452,0.29382462,592.45,592.02,5.038]
[1741479063453,0.89903724,592.39,592.02,3.935]
[1741479063649,0.8988808,592.38,592.02,3.935]
[1741479063854,0.29382462,592.45,592.02,3.935]
[1741479064052,0.89889079,592.44,592.02,3.935]
[1741479064256,0.89889079,592.43,592.02,3.935]
[1741479064454,0.89889079,592.42,592.02,3.935]
[1741479064649,0.89889079,592.41,592.02,3.935]
[1741479064853,0.89889079,592.4,592.02,3.935]
[1741479065052,0.2938209,592.45,592.02,3.935]
[1741479065255,0.89871087,592.44,592.02,3.935]
[1741479065455,0.89871087,592.43,592.02,3.935]
[1741479065653,0.89871087,592.42,592.02,3.935]
[1741479065850,0.89871087,592.41,592.02,3.935]
[1741479066152,0.2938209,592.45,592.02,3.935]
[1741479066353,0.89857756,592.44,592.02,3.935]
[1741479066652,0.89857756,592.43,592.02,3.935]
[1741479066854,0.89857756,592.42,592.02,2.914]
[1741479067050,0.89857756,592.41,592.02,2.914]
[1741479067352,0.337234,593.06,592.02,2.914]
[1741479067551,0.29382462,592.45,592.02,2.914]
[1741479067756,0.89848311,592.44,592.02,2.914]
[1741479068056,0.89848311,592.43,592.02,2.914]
[1741479068256,0.89838259,592.42,592.02,2.914]
[1741479068450,0.337234,593.06,592.02,2.914]
[1741479068652,0.89838576,593.05,592.02,2.914]
[1741479068852,1.23563113,593.04,592.02,2.914]
[1741479069050,1.23563682,593.03,592.02,2.914]
[1741479069250,1.23564251,593.02,592.02,2.914]
[1741479069449,1.2356482,593.01,592.02,2.914]
[1741479069651,0.29374525,593.04,592.02,2.914]
[1741479069652,1.23565388,593.0,592.02,2.914]
[1741479069851,1.23565957,592.99,592.02,3.986]
[1741479070056,1.23566526,592.98,592.02,3.986]
[1741479070351,1.23567095,592.97,592.02,3.986]
[1741479070655,1.23567663,592.96,592.02,3.986]
[1741479070855,1.23568232,592.95,592.02,3.986]
[1741479071053,0.89838576,592.94,592.02,3.986]
[1741479071254,0.89838576,592.93,592.02,3.986]
[1741479071451,0.89838576,592.92,592.02,3.986]
[1741479071654,0.89838576,592.91,592.02,3.986]
[1741479071855,0.33729656,592.95,592.02,3.986]
[1741479071856,0.89838576,592.9,592.02,3.986]
[1741479072052,0.89838576,592.89,592.02,3.986]
[1741479072252,0.89838576,592.88,592.02,3.986]
[1741479072454,0.89838576,592.87,592.02,3.986]
[1741479072654,0.89838576,592.86,592.02,3.986]
[1741479072855,0.89838576,592.85,592.02,3.986]
[1741479073056,0.89838576,592.84,592.02,3.986]
[1741479073257,0.89838576,592.83,592.02,3.986]
[1741479073553,0.89838576,592.82,592.02,3.986]
[1741479073750,0.29375517,592.84,592.02,3.986]
[1741479073751,0.89838576,592.81,592.02,3.986]
[1741479073955,0.89838576,592.8,592.02,3.986]
[1741479074155,0.89838576,592.79,592.02,3.986]
[1741479074355,0.89838576,592.78,592.02,3.986]
[1741479074558,0.89838576,592.77,592.02,3.986]
[1741479074859,0.89838576,592.76,592.02,3.986]
[1741479075160,0.89838576,592.75,592.02,3.986]
[1741479075360,0.29375517,592.84,592.02,3.986]
[1741479075361,0.89838576,592.74,592.02,3.986]
[1741479075553,0.89838576,592.73,592.02,3.986]
[1741479075759,0.89838576,592.72,592.02,3.986]
[1741479075958,0.89838576,592.71,592.02,3.986]
[1741479076154,0.89838576,592.7,592.02,3.986]
[1741479076355,0.89838576,592.69,592.02,3.986]
[1741479076560,0.89838576,592.68,592.02,3.986]
[1741479076763,0.89838576,592.67,592.02,3.986]
[1741479077061,0.89838576,592.66,592.02,3.986]
[1741479077255,0.89838576,592.65,592.02,3.986]
[1741479077561,0.89838576,592.64,592.02,3.986]
[1741479077755,0.89838576,592.63,592.02,3.986]
[1741479077955,0.89838576,592.62,592.02,3.986]
[1741479078154,0.89838576,592.61,592.02,3.986]
[1741479078355,0.29376013,592.7,592.02,3.986]
[1741479078356,0.89838576,592.6,592.02,3.986]
[1741479078559,0.89805841,592.59,592.02,3.986]
[1741479078762,0.89805841,592.58,592.02,3.986]
[1741479078962,0.89805841,592.57,592.02,3.986]
[1741479079263,0.89805841,592.56,592.02,3.986]
[1741479079461,0.89805841,592.55,592.02,3.986]
[1741479079657,0.89805841,592.54,592.02,3.986]
[1741479079956,0.89805841,592.53,592.02,3.986]
[1741479080162,0.29376013,592.7,592.02,3.986]
[1741479080362,0.89809886,592.69,592.02,3.986]
[1741479080557,0.89809886,592.68,592.02,3.986]
[1741479080760,0.89809886,592.67,592.02,3.986]
[1741479081060,0.89809886,592.66,592.02,3.986]
[1741479081261,0.89809886,592.65,592.02,4.877]
[1741479081461,0.89809886,592.64,592.02,4.877]
[1741479081659,0.89809886,592.63,592.02,4.877]
[1741479081865,0.89809886,592.62,592.02,4.877]
[1741479082059,0.89809886,592.61,592.02,4.877]
[1741479082365,0.89809886,592.6,592.02,4.877]
[1741479082564,0.89809886,592.59,592.02,4.877]
[1741479082763,0.89809886,592.58,592.02,4.877]
[1741479082963,0.89809886,592.57,592.02,4.877]
[1741479083163,0.89809886,592.56,592.02,4.877]
[1741479083359,0.89809886,592.55,592.02,4.877]
[1741479083558,0.89809886,592.54,592.02,4.877]
[1741479083759,0.89809886,592.53,592.02,4.877]
[1741479084064,0.89809886,592.52,592.02,4.877]
[1741479084265,0.29377253,592.6,592.02,4.877]
[1741479084465,0.89835,592.59,592.02,4.877]
[1741479084657,0.89835,592.58,592.02,4.877]
[1741479084858,0.89835,592.57,592.02,4.877]
[1741479085060,0.89835,592.56,592.02,4.877]
[1741479085262,0.89835,592.55,592.02,4.877]
[1741479085465,0.89835,592.54,592.02,4.877]
[1741479085666,0.89835,592.53,592.02,4.877]
[1741479085865,0.89835,592.52,592.02,4.877]
[1741479086066,0.89845105,592.51,592.02,4.877]
[1741479086263,0.89845105,592.5,592.02,4.877]
[1741479086566,0.89845105,592.49,592.02,1.963]
[1741479086766,0.89845105,592.48,592.02,1.963]
[1741479086967,0.89845105,592.47,592.02,1.963]
[1741479087267,0.89845105,592.46,592.02,1.963]
[1741479087567,0.29379857,592.55,592.02,1.963]
[1741479087767,0.89858493,592.54,592.02,1.963]
[1741479087968,0.89858493,592.53,592.02,1.963]
[1741479088269,0.33729656,592.95,592.02,1.963]
[1741479088270,0.89858493,592.52,592.02,2.748]
[1741479088563,0.89858493,592.51,592.02,2.748]
[1741479088768,0.29380229,592.52,592.02,2.748]
[1741479088769,0.89865393,592.5,592.02,2.748]
[1741479088968,0.89865393,592.49,592.02,1.676]
[1741479089169,0.89865393,592.48,592.02,1.676]
[1741479089467,0.89865393,592.47,592.02,1.676]
[1741479089670,0.89865393,592.46,592.02,1.676]
[1741479089869,0.29380229,592.52,592.02,1.676]
[1741479090069,0.89854196,592.51,592.02,1.676]
[1741479090266,0.89854196,592.5,592.02,1.676]
[1741479090463,0.29380229,592.52,592.02,1.676]
[1741479091270,0.33729656,592.95,592.02,1.676]
[1741479091472,0.89878729,592.94,592.02,1.676]
[1741479091770,0.29373038,592.56,592.02,1.676]
[1741479092066,0.89879787,592.55,592.02,2.663]
[1741479092263,0.33729656,592.95,592.02,2.663]
[1741479092469,0.89878317,592.94,592.02,2.663]
[1741479092669,0.89878317,592.93,592.02,2.663]
[1741479092869,0.89878317,592.92,592.02,2.663]
[1741479093172,0.89878317,592.91,592.02,2.663]
[1741479093475,0.89878317,592.9,592.02,2.663]
[1741479093772,0.89878317,592.89,592.02,2.663]
[1741479094072,0.89878317,592.88,592.02,2.663]
[1741479094273,0.89878317,592.87,592.02,2.663]
[1741479094467,0.89878317,592.86,592.02,2.663]
[1741479094673,0.89878317,592.85,592.02,2.663]
[1741479094873,0.89878317,592.84,592.02,2.663]
[1741479095075,0.89878317,592.83,592.02,2.663]
[1741479095375,0.89878317,592.82,592.02,2.663]
[1741479095572,0.89878317,592.81,592.02,2.663]
[1741479095874,0.89878317,592.8,592.02,2.663]
[1741479096074,0.29373905,592.87,592.02,2.663]
[1741479096075,0.89878317,592.79,592.02,2.663]
[1741479096275,0.89878317,592.78,592.02,2.663]
[1741479096475,0.89878317,592.77,592.02,2.663]
[1741479096676,0.89878317,592.76,592.02,2.663]
[1741479096976,0.89878317,592.75,592.02,2.663]
[1741479097176,0.89878317,592.74,592.02,2.663]
[1741479097376,0.89878317,592.73,592.02,2.663]
[1741479097571,0.89878317,592.72,592.02,2.663]
[1741479097772,0.89878317,592.71,592.02,3.785]
[1741479097969,0.89878317,592.7,592.02,3.785]
[1741479098172,0.89878317,592.69,592.02,3.785]
[1741479098379,0.89878317,592.68,592.02,3.785]
[1741479098576,0.89878317,592.67,592.02,3.785]
[1741479098779,0.89878317,592.66,592.02,3.785]
[1741479098974,0.89878317,592.65,592.02,3.785]
[1741479099281,0.29375517,592.74,592.02,3.785]
[1741479099282,0.89878002,592.64,592.02,3.785]
[1741479099580,0.89878002,592.63,592.02,3.785]
[1741479099772,0.89878002,592.62,592.02,3.785]
[1741479099974,0.89878002,592.61,592.02,3.785]
[1741479100273,0.89878002,592.6,592.02,3.785]
[1741479100475,0.89878002,592.59,592.02,3.785]
[1741479100675,0.33729656,592.95,592.02,3.785]
[1741479100676,0.89878002,592.58,592.02,3.785]
[1741479100878,0.89878002,592.57,592.02,3.785]
[1741479101079,0.8987907,592.56,592.02,3.785]
[1741479101279,0.8987907,592.55,592.02,3.785]
[1741479101574,0.8987907,592.54,592.02,3.785]
[1741479101778,0.8987907,592.53,592.02,3.785]
[1741479101978,0.29377253,592.6,592.02,3.785]
[1741479102179,0.89867101,592.59,592.02,3.785]
[1741479102374,0.89867101,592.58,592.02,3.785]
[1741479102572,0.89867101,592.57,592.02,3.785]
[1741479102775,0.89867101,592.56,592.02,3.785]
[1741479102977,0.89867101,592.55,592.02,3.785]
[1741479103272,0.89867101,592.54,592.02,3.785]
[1741479103473,0.89867101,592.53,592.02,3.785]
[1741479103677,0.89867101,592.52,592.02,4.996]
[1741479103876,0.29377253,592.6,592.02,4.996]
[1741479104077,0.89866099,592.59,592.02,4.996]
[1741479104278,0.89866099,592.58,592.02,4.996]
[1741479104576,0.89866099,592.57,592.02,4.996]
[1741479104774,0.89866099,592.56,592.02,4.996]
[1741479104974,0.89866099,592.55,592.02,4.996]
[1741479105180,0.29377253,592.6,592.02,4.996]
[1741479105181,0.89866099,592.54,592.02,4.996]
[1741479105376,0.89866099,592.53,592.02,4.996]
[1741479105575,0.89866099,592.52,592.02,4.996]
[1741479105781,0.29377253,592.6,592.02,4.996]
[1741479105978,0.89874126,592.59,592.02,4.996]
[1741479106183,0.89874126,592.58,592.02,4.996]
[1741479106382,0.89874126,592.57,592.02,4.996]
[1741479106584,0.89874126,592.56,592.02,4.996]
[1741479106784,0.89874126,592.55,592.02,4.996]
[1741479106980,0.89874126,592.54,592.02,4.996]
[1741479107185,0.89874126,592.53,592.02,4.996]
[1741479107381,0.89874126,592.52,592.02,4.996]
[1741479107588,0.29377253,592.6,592.02,4.996]
[1741479107787,0.89880534,592.59,592.02,6.0]
[1741479107986,0.89880534,592.58,592.02,6.0]
[1741479108186,0.89880534,592.57,592.02,6.0]
[1741479108388,0.89880534,592.56,592.02,6.0]
[1741479108591,0.89880534,592.55,592.02,6.0]
[1741479108789,0.89880534,592.54,592.02,6.0]
[1741479108991,0.89880534,592.53,592.02,6.0]
[1741479109189,0.89880534,592.52,592.02,6.0]
[1741479109389,0.89883115,592.51,592.02,6.0]
[1741479109591,0.29378245,592.56,592.02,6.0]
[1741479109790,0.89875992,592.55,592.02,4.324]
[1741479109991,0.89875992,592.54,592.02,4.324]
[1741479110189,0.89875992,592.53,592.02,4.324]
[1741479110386,0.89875992,592.52,592.02,4.324]
[1741479110588,0.89875992,592.51,592.02,4.324]
[1741479110790,0.29378245,592.56,592.02,4.324]
[1741479110987,0.89881074,592.55,592.02,3.202]
[1741479111290,0.89881074,592.54,592.02,3.202]
[1741479111490,0.89881074,592.53,592.02,3.202]
[1741479111691,0.89881074,592.52,592.02,3.202]
[1741479111891,0.29378245,592.56,592.02,3.202]
[1741479112190,0.89883836,592.55,592.02,3.202]
[1741479112389,0.89883836,592.54,592.02,3.202]
[1741479112591,0.89883836,592.53,592.02,3.202]
[1741479112785,0.89883836,592.52,592.02,3.202]
[1741479112990,0.29373038,592.56,592.02,4.958]
[1741479113185,0.89885705,592.55,592.02,4.958]
[1741479113385,0.89885705,592.54,592.02,4.958]
[1741479113588,0.29373038,592.56,592.02,4.958]
[1741479113589,0.89885705,592.53,592.02,4.958]
[1741479113790,0.89885705,592.52,592.02,6.019]
[1741479114092,0.29373038,592.56,592.02,7.088]
[1741479114292,0.89891628,592.55,592.02,7.088]
[1741479114490,0.89891628,592.54,592.02,7.088]
[1741479114692,0.89891628,592.53,592.02,7.088]
[1741479114893,0.89891628,592.52,592.02,7.088]
[1741479115093,0.29373038,592.56,592.02,7.088]
[1741479115294,0.89891912,592.55,592.02,7.088]
[1741479115486,0.89891912,592.54,592.02,7.088]
[1741479115689,0.89891912,592.53,592.02,7.088]
[1741479115890,0.89891912,592.52,592.02,7.088]
[1741479116087,0.29378369,592.56,592.02,7.088]
[1741479116387,0.89893027,592.55,592.02,7.088]
[1741479116586,0.89893027,592.54,592.02,7.088]
[1741479116794,0.89893027,592.53,592.02,7.088]
[1741479116993,0.89893027,592.52,592.02,7.088]
[1741479117194,0.29378369,592.56,592.02,7.088]
[1741479117389,0.89898826,592.55,592.02,7.088]
[1741479117588,0.89898828,592.54,592.02,7.088]
[1741479117791,0.89898828,592.53,592.02,7.088]
[1741479117994,0.89898828,592.52,592.02,7.088]
[1741479118293,0.8990524,592.51,592.02,7.088]
[1741479118494,0.33729656,592.95,592.02,7.088]
[1741479118794,0.29378369,592.56,592.02,7.088]
[1741479118994,0.89906949,592.55,592.02,7.088]
[1741479119194,0.89906949,592.54,592.02,7.088]
[1741479119393,0.89906949,592.53,592.02,7.088]
[1741479119594,0.89906949,592.52,592.02,7.088]
[1741479119794,0.29378121,592.56,592.02,7.088]
[1741479119995,0.89916816,592.55,592.02,7.088]
[1741479120193,0.89916816,592.54,592.02,7.088]
[1741479120392,0.89916816,592.53,592.02,7.088]
[1741479120593,0.89916816,592.52,592.02,7.088]
[1741479120793,0.29378121,592.56,592.02,7.088]
[1741479120993,0.89916048,592.55,592.02,7.088]
[1741479121187,0.89916048,592.54,592.02,7.088]
[1741479121391,0.89916048,592.53,592.02,7.088]
[1741479121590,0.33729656,592.95,592.02,7.088]
[1741479121591,0.89916048,592.52,592.02,7.088]
[1741479121797,0.89916048,592.51,592.02,7.088]
[1741479122092,0.29377997,592.56,592.02,4.873]
[1741479122289,0.89928568,592.55,592.02,4.873]
[1741479122489,0.89928568,592.54,592.02,4.873]
[1741479122694,0.89928568,592.53,592.02,4.873]
[1741479122893,0.89928568,592.52,592.02,4.873]
[1741479123092,0.89928568,592.51,592.02,4.873]
[1741479123293,0.89928568,592.5,592.02,4.873]
[1741479123488,0.29377997,592.56,592.02,4.873]
[1741479123693,0.8994717,592.55,592.02,4.873]
[1741479123891,0.8994717,592.54,592.02,4.873]
[1741479124088,0.8994717,592.53,592.02,4.873]
[1741479124292,0.8994717,592.52,592.02,4.873]
[1741479124493,0.8994717,592.51,592.02,4.873]
[1741479124695,0.8994717,592.5,592.02,4.873]
[1741479124890,0.8994717,592.49,592.02,4.873]
[1741479125095,0.29378121,592.56,592.02,4.873]
[1741479125297,0.89943606,592.55,592.02,4.873]
[1741479125487,0.89943606,592.54,592.02,4.873]
[1741479125693,0.89943606,592.53,592.02,4.873]
[1741479125893,0.89943606,592.52,592.02,4.873]
[1741479126095,0.89943606,592.51,592.02,4.873]
[1741479126295,0.89943606,592.5,592.02,4.873]
[1741479126493,0.89943606,592.49,592.02,3.886]
[1741479126692,0.29378121,592.56,592.02,3.886]
[1741479127000,0.89952474,592.55,592.02,3.886]
[1741479127298,0.89962119,592.54,592.02,3.886]
[1741479127593,0.33729656,592.95,592.02,3.886]
[1741479127594,0.89962119,592.53,592.02,3.886]
[1741479127797,0.89962119,592.52,592.02,3.886]
[1741479127998,0.89962119,592.51,592.02,3.886]
[1741479128194,0.89962119,592.5,592.02,3.886]
[1741479128399,0.89962119,592.49,592.02,2.817]
[1741479128601,0.89962119,592.48,592.02,2.817]
[1741479128800,0.29377997,592.56,592.02,2.817]
[1741479129102,0.89973477,592.55,592.02,2.817]
[1741479129395,0.89973477,592.54,592.02,2.817]
[1741479129601,0.89973477,592.53,592.02,3.737]
[1741479129799,0.89973477,592.52,592.02,3.737]
[1741479129995,0.89973477,592.51,592.02,3.737]
[1741479130197,0.89973477,592.5,592.02,3.737]
[1741479130402,0.89973477,592.49,592.02,3.737]
[1741479130702,0.29378245,592.57,592.02,3.737]
[1741479130899,0.89985955,592.56,592.02,3.737]
[1741479131095,0.89985955,592.55,592.02,3.737]
[1741479131300,0.89994089,592.54,592.02,3.737]
[1741479131500,0.89994089,592.53,592.02,3.737]
[1741479131700,0.89994089,592.52,592.02,4.774]
[1741479131901,0.89994089,592.51,592.02,4.774]
[1741479132098,0.89994089,592.5,592.02,4.774]
[1741479132301,0.89994089,592.49,592.02,4.774]
[1741479132499,0.29378245,592.57,592.02,4.774]
[1741479132703,0.90001375,592.56,592.02,4.774]
[1741479132900,0.90001375,592.55,592.02,4.774]
[1741479133105,0.90001375,592.54,592.02,4.774]
[1741479133400,0.90001375,592.53,592.02,4.774]
[1741479133602,0.90001375,592.52,592.02,4.774]
[1741479133802,0.90001375,592.51,592.02,4.774]
[1741479134000,0.33729656,592.95,592.02,4.774]
[1741479134203,0.90011989,592.94,592.02,4.774]
[1741479134402,0.90011989,592.93,592.02,4.774]
[1741479134601,0.90011989,592.92,592.02,4.774]
[1741479134804,0.90011989,592.91,592.02,4.774]
[1741479135001,0.90011989,592.9,592.02,4.774]
[1741479135306,0.90011989,592.89,592.02,4.774]
[1741479135502,0.90011989,592.88,592.02,4.774]
[1741479135698,0.90011989,592.87,592.02,4.774]
[1741479135903,0.90011989,592.86,592.02,4.774]
[1741479136100,0.90011989,592.85,592.02,4.774]
[1741479136304,0.90011989,592.84,592.02,4.774]
[1741479136499,0.90011989,592.83,592.02,4.774]
[1741479136707,0.90011989,592.82,592.02,4.774]
[1741479136906,0.90011989,592.81,592.02,4.774]
[1741479137102,0.90011989,592.8,592.02,4.774]
[1741479137306,0.90011989,592.79,592.02,4.774]
[1741479137507,0.90011989,592.78,592.02,4.774]
[1741479137803,0.90011989,592.77,592.02,4.774]
[1741479138009,0.90011989,592.76,592.02,4.774]
[1741479138208,0.90011989,592.75,592.02,4.774]
[1741479138411,0.90011989,592.74,592.02,4.774]
[1741479138607,0.90011989,592.73,592.02,4.774]
[1741479138805,0.90011989,592.72,592.02,4.774]
[1741479139010,0.29372294,592.85,592.02,4.774]
[1741479139011,0.90011989,592.71,592.02,4.774]
[1741479139312,0.90011989,592.7,592.02,4.774]
[1741479139612,0.89978385,592.69,592.02,4.774]
[1741479139910,0.89978385,592.68,592.02,4.774]
[1741479140110,0.89978385,592.67,592.02,4.774]
[1741479140307,0.89978385,592.66,592.02,4.774]
[1741479140611,0.89978385,592.65,592.02,4.774]
[1741479140810,0.89978385,592.64,592.02,4.774]
[1741479141010,0.89978385,592.63,592.02,4.774]
[1741479141206,0.89978385,592.62,592.02,4.774]
[1741479141408,0.89978385,592.61,592.02,4.774]
[1741479141609,0.89978385,592.6,592.02,4.774]
[1741479141810,0.89978385,592.59,592.02,4.774]
[1741479142112,0.89978385,592.58,592.02,4.774]
[1741479142313,0.89978385,592.57,592.02,4.774]
[1741479142612,0.89978385,592.56,592.02,4.774]
[1741479142913,0.33729656,592.95,592.02,4.774]
[1741479143106,0.89960108,592.94,592.02,4.774]
[1741479143310,0.89960108,592.93,592.02,4.774]
[1741479143511,0.29366469,592.94,592.02,4.774]
[1741479143808,0.8996216,592.93,592.02,4.774]
[1741479144005,0.8996216,592.92,592.02,4.774]
[1741479144213,0.8996216,592.91,592.02,4.774]
[1741479144414,0.8996216,592.9,592.02,4.774]
[1741479144713,0.8996216,592.89,592.02,4.774]
[1741479144913,0.8996216,592.88,592.02,4.774]